Workbook

Sheet Expenses
B3: Product Launch Party
B4: EXPENSES DETAILS
B7: Total expenses | C7: Estimated | D7: Actual | F7: Program | G7: Estimated | H7: Actual
C8: =SiteExpenses[[#Totals],[Estimated]]+DecorationsExpenses[[#Totals],[Estimated]]+PublicityExpenses[[#Totals],[Estimated]]+MiscellaneousExpenses[[#Totals],[Estimated]]+RefreshmentsExpenses[[#Totals],[Estimated]]+ProgramExpenses[[#Totals],[Estimated]]+PrizesExpenses[[#Totals],[Estimated]] -> $2,090.00 | D8: =SiteExpenses[[#Totals],[Actual]]+DecorationsExpenses[[#Totals],[Actual]]+PublicityExpenses[[#Totals],[Actual]]+MiscellaneousExpenses[[#Totals],[Actual]]+RefreshmentsExpenses[[#Totals],[Actual]]+ProgramExpenses[[#Totals],[Actual]]+PrizesExpenses[[#Totals],[Actual]] -> $1,640.00 | F8: Performers | G8: $750.00 | H8: $700.00
F9: Speakers | G9: $150.00 | H9: $0.00
F10: Travel
B11: Site | C11: Estimated | D11: Actual | F11: Hotel
B12: Room and hall fees | C12: $500.00 | D12: $450.00 | F12: Other
B13: Site staff | F13: Total | G13: =SUBTOTAL(109,ProgramExpenses[Estimated]) -> $900.00 | H13: =SUBTOTAL(109,ProgramExpenses[Actual]) -> $700.00
B14: Equipment
B15: Tables and chairs | F15: Publicity | G15: Estimated | H15: Actual
B16: Total | C16: =SUBTOTAL(109,SiteExpenses[Estimated]) -> $500.00 | D16: =SUBTOTAL(109,SiteExpenses[Actual]) -> $450.00 | F16: Graphics work
F17: Photocopying / Printing | G17: $20.00 | H17: $20.00
B18: Decorations | C18: Estimated | D18: Actual | F18: Postage
B19: Flowers | C19: $200.00 | D19: $100.00 | F19: Total | G19: =SUBTOTAL(109,PublicityExpenses[Estimated]) -> $20.00 | H19: =SUBTOTAL(109,PublicityExpenses[Actual]) -> $20.00
B20: Candles
B21: Lighting | F21: Prizes | G21: Estimated | H21: Actual
B22: Balloons | F22: Ribbons / Trophies
B23: Paper supplies | F23: Gifts | G23: $100.00 | H23: $100.00
B24: Total | C24: =SUBTOTAL(109,DecorationsExpenses[Estimated]) -> $200.00 | D24: =SUBTOTAL(109,DecorationsExpenses[Actual]) -> $100.00 | F24: Total | G24: =SUBTOTAL(109,PrizesExpenses[Estimated]) -> $100.00 | H24: =SUBTOTAL(109,PrizesExpenses[Actual]) -> $100.00
B26: Refreshments | C26: Estimated | D26: Actual | F26: Miscellaneous | G26: Estimated | H26: Actual
B27: Food | F27: Telephone | G27: $50.00 | H27: $50.00
B28: Drinks | C28: $220.00 | D28: $120.00 | F28: Transportation | G28: $20.00 | H28: $20.00
B29: Linens | C29: $80.00 | D29: $80.00 | F29: Stationery supplies
B30: Staff and gratuities | F30: Fax services
B31: Total | C31: =SUBTOTAL(109,RefreshmentsExpenses[Estimated]) -> $300.00 | D31: =SUBTOTAL(109,RefreshmentsExpenses[Actual]) -> $200.00 | F31: Total | G31: =SUBTOTAL(109,MiscellaneousExpenses[Estimated]) -> $70.00 | H31: =SUBTOTAL(109,MiscellaneousExpenses[Actual]) -> $70.00

Sheet Income
B3: =Expenses!B3 -> Product Launch Party
B4: INCOME DETAILS
B7: Total income | C7: Estimated | D7: Actual
C8: =SUM(Admissions[[#Totals],[Estimated income]],AdsInProgram[[#Totals],[Estimated income]],ExhibitorsAndVendors[[#Totals],[Estimated income]],SaleOfItems[[#Totals],[Estimated income]]) -> $4,450.00 | D8: =SUM(Admissions[[#Totals],[Actual income]],AdsInProgram[[#Totals],[Actual income]],ExhibitorsAndVendors[[#Totals],[Actual income]],SaleOfItems[[#Totals],[Actual income]]) -> $4,170.00
B10: Admissions
B11: Type | C11: Estimated | D11: Actual | E11: Price | F11: Estimated income | G11: Actual income
B12: Adults | C12: 30 | D12: 25 | E12: $20.00 | F12: =C12*E12 -> $600.00 | G12: =D12*E12 -> $500.00
B13: Children | C13: 20 | D13: 22 | E13: $10.00 | F13: =C13*E13 -> $200.00 | G13: =D13*E13 -> $220.00
B14: Other | C14: 10 | D14: 10 | E14: $10.00 | F14: =C14*E14 -> $100.00 | G14: =D14*E14 -> $100.00
B15: Total | C15: =SUBTOTAL(109,Admissions[Estimated]) -> 60 | D15: =SUBTOTAL(109,Admissions[Actual]) -> 57 | F15: =SUBTOTAL(109,Admissions[Estimated income]) -> $900.00 | G15: =SUBTOTAL(109,Admissions[Actual income]) -> $820.00
B17: Ads in program
B18: Type | C18: Estimated | D18: Actual | E18: Price | F18: Estimated income | G18: Actual income
B19: Covers | C19: 2 | D19: 4 | E19: $50.00 | F19: =C19*E19 -> $100.00 | G19: =D19*E19 -> $200.00
B20: Half-pages | C20: 2 | D20: 2 | E20: $30.00 | F20: =C20*E20 -> $60.00 | G20: =D20*E20 -> $60.00
B21: Quarter-pages | C21: 2 | D21: 2 | E21: $20.00 | F21: =C21*E21 -> $40.00 | G21: =D21*E21 -> $40.00
B22: Total | C22: =SUBTOTAL(109,AdsInProgram[Estimated]) -> 6 | D22: =SUBTOTAL(109,AdsInProgram[Actual]) -> 8 | F22: =SUBTOTAL(109,AdsInProgram[Estimated income]) -> $200.00 | G22: =SUBTOTAL(109,AdsInProgram[Actual income]) -> $300.00
B24: Exhibitors / Vendors
B25: Type | C25: Estimated | D25: Actual | E25: Price | F25: Estimated income | G25: Actual income
B26: Large booths | C26: 5 | D26: 5 | E26: $300.00 | F26: =C26*E26 -> $1,500.00 | G26: =D26*E26 -> $1,500.00
B27: Med. booths | C27: 5 | D27: 4 | E27: $200.00 | F27: =C27*E27 -> $1,000.00 | G27: =D27*E27 -> $800.00
B28: Small booths | C28: 1 | D28: 0 | E28: $100.00 | F28: =C28*E28 -> $100.00 | G28: =D28*E28 -> $0.00
B29: Total | C29: =SUBTOTAL(109,ExhibitorsAndVendors[Estimated]) -> 11 | D29: =SUBTOTAL(109,ExhibitorsAndVendors[Actual]) -> 9 | F29: =SUBTOTAL(109,ExhibitorsAndVendors[Estimated income]) -> $2,600.00 | G29: =SUBTOTAL(109,ExhibitorsAndVendors[Actual income]) -> $2,300.00
B31: Sales of items
B32: Type | C32: Estimated | D32: Actual | E32: Price | F32: Estimated income | G32: Actual income
B33: Item 1 | C33: 2 | D33: 2 | E33: $150.00 | F33: =C33*E33 -> $300.00 | G33: =D33*E33 -> $300.00
B34: Item 2 | C34: 5 | D34: 5 | E34: $50.00 | F34: =C34*E34 -> $250.00 | G34: =D34*E34 -> $250.00
B35: Item 3 | C35: 5 | D35: 5 | E35: $20.00 | F35: =C35*E35 -> $100.00 | G35: =D35*E35 -> $100.00
B36: Item 4 | C36: 5 | D36: 5 | E36: $20.00 | F36: =C36*E36 -> $100.00 | G36: =D36*E36 -> $100.00
B37: Total | C37: =SUBTOTAL(109,SaleOfItems[Estimated]) -> 17 | D37: =SUBTOTAL(109,SaleOfItems[Actual]) -> 17 | F37: =SUBTOTAL(109,SaleOfItems[Estimated income]) -> $750.00 | G37: =SUBTOTAL(109,SaleOfItems[Actual income]) -> $750.00

Sheet Profit & loss summary
B3: =Expenses!B3 -> Product Launch Party
B4: PROFIT + LOSS SUMMARY
B7: Expenses summary | C7: Estimated | D7: Actual | F7: Actual expenses | L7: Ranking | M7: Expenses | N7: Estimated | O7: Actual | P7: Ranking Value
B8: =VLOOKUP(1,$L$8:$O$14,2,FALSE) -> Program | C8: =VLOOKUP(1,$L$8:$O$14,3,FALSE) -> $900.00 | D8: =VLOOKUP(1,$L$8:$O$14,4,FALSE) -> $700.00 | L8: =_xlfn.RANK.AVG(P8,$P$8:$P$14) -> 2 | M8: Site | N8: =SiteExpenses[[#Totals],[Estimated]] -> $500 | O8: =SiteExpenses[[#Totals],[Actual]] -> $450 | P8: =O8+ROW(O8)/10000 -> 450.0008
B9: =VLOOKUP(2,$L$8:$O$14,2,FALSE) -> Site | C9: =VLOOKUP(2,$L$8:$O$14,3,FALSE) -> $500.00 | D9: =VLOOKUP(2,$L$8:$O$14,4,FALSE) -> $450.00 | L9: 5 | M9: Decorations | N9: =DecorationsExpenses[[#Totals],[Estimated]] -> $200 | O9: =DecorationsExpenses[[#Totals],[Actual]] -> $100 | P9: =O9+ROW(O9)/10000 -> 100.0009
B10: =VLOOKUP(3,$L$8:$O$14,2,FALSE) -> Refreshments | C10: =VLOOKUP(3,$L$8:$O$14,3,FALSE) -> $300.00 | D10: =VLOOKUP(3,$L$8:$O$14,4,FALSE) -> $200.00 | L10: 3 | M10: Refreshments | N10: =RefreshmentsExpenses[[#Totals],[Estimated]] -> $300 | O10: =RefreshmentsExpenses[[#Totals],[Actual]] -> $200 | P10: 200.0010
B11: =VLOOKUP(4,$L$8:$O$14,2,FALSE) -> Prizes | C11: =VLOOKUP(4,$L$8:$O$14,3,FALSE) -> $100.00 | D11: =VLOOKUP(4,$L$8:$O$14,4,FALSE) -> $100.00 | L11: 1 | M11: Program | N11: =ProgramExpenses[[#Totals],[Estimated]] -> $900 | O11: =ProgramExpenses[[#Totals],[Actual]] -> $700 | P11: 700.0011
B12: =VLOOKUP(5,$L$8:$O$14,2,FALSE) -> Decorations | C12: =VLOOKUP(5,$L$8:$O$14,3,FALSE) -> $200.00 | D12: =VLOOKUP(5,$L$8:$O$14,4,FALSE) -> $100.00 | L12: 7 | M12: Publicity | N12: =PublicityExpenses[[#Totals],[Estimated]] -> $20 | O12: =PublicityExpenses[[#Totals],[Actual]] -> $20 | P12: 20.0012
B13: =VLOOKUP(6,$L$8:$O$14,2,FALSE) -> Miscellaneous | C13: =VLOOKUP(6,$L$8:$O$14,3,FALSE) -> $70.00 | D13: =VLOOKUP(6,$L$8:$O$14,4,FALSE) -> $70.00 | L13: 4 | M13: Prizes | N13: =PrizesExpenses[[#Totals],[Estimated]] -> $100 | O13: =PrizesExpenses[[#Totals],[Actual]] -> $100 | P13: 100.0013
B14: =VLOOKUP(7,$L$8:$O$14,2,FALSE) -> Publicity | C14: =VLOOKUP(7,$L$8:$O$14,3,FALSE) -> $20.00 | D14: =VLOOKUP(7,$L$8:$O$14,4,FALSE) -> $20.00 | L14: 6 | M14: Miscellaneous | N14: =MiscellaneousExpenses[[#Totals],[Estimated]] -> $70 | O14: =MiscellaneousExpenses[[#Totals],[Actual]] -> $70 | P14: 70.0014
B15: Total | C15: =SUBTOTAL(109,ExpensesSummary[Estimated]) -> $2,090.00 | D15: =SUBTOTAL(109,ExpensesSummary[Actual]) -> $1,640.00
B17: Income summary | C17: Estimated | D17: Actual | F17: Actual income | L17: Ranking | M17: Income | N17: Estimated | O17: Actual | P17: Ranking Value
B18: =VLOOKUP(1,$L$18:$O$21,2,FALSE) -> Exhibitors / Vendors | C18: =VLOOKUP(1,$L$18:$O$21,3,FALSE) -> $2,600.00 | D18: =VLOOKUP(1,$L$18:$O$21,4,FALSE) -> $2,300.00 | L18: =_xlfn.RANK.AVG(P18,$P$18:$P$21) -> 2 | M18: Admissions | N18: =Admissions[[#Totals],[Estimated income]] -> $900 | O18: =Admissions[[#Totals],[Actual income]] -> $820 | P18: =O18+ROW(O18)/10000 -> 820.0018
B19: =VLOOKUP(2,$L$18:$O$21,2,FALSE) -> Admissions | C19: =VLOOKUP(2,$L$18:$O$21,3,FALSE) -> $900.00 | D19: =VLOOKUP(2,$L$18:$O$21,4,FALSE) -> $820.00 | L19: =_xlfn.RANK.AVG(P19,$P$18:$P$21) -> 4 | M19: Ads in Program | N19: =AdsInProgram[[#Totals],[Estimated income]] -> $200 | O19: =AdsInProgram[[#Totals],[Actual income]] -> $300 | P19: 300.0019
B20: Sales of Items | C20: =VLOOKUP(3,$L$18:$O$21,3,FALSE) -> $750.00 | D20: =VLOOKUP(3,$L$18:$O$21,4,FALSE) -> $750.00 | L20: 1 | M20: Exhibitors / Vendors | N20: =ExhibitorsAndVendors[[#Totals],[Estimated income]] -> $2,600 | O20: =ExhibitorsAndVendors[[#Totals],[Actual income]] -> $2,300 | P20: 2,300.0020
B21: =VLOOKUP(4,$L$18:$O$21,2,FALSE) -> Ads in Program | C21: =VLOOKUP(4,$L$18:$O$21,3,FALSE) -> $200.00 | D21: =VLOOKUP(4,$L$18:$O$21,4,FALSE) -> $300.00 | L21: 3 | M21: Sales of Items | N21: =SaleOfItems[[#Totals],[Estimated income]] -> $750 | O21: =SaleOfItems[[#Totals],[Actual income]] -> $750 | P21: 750.0021
B22: Total | C22: =SUBTOTAL(109,IncomeSummary[Estimated]) -> $4,450.00 | D22: =SUBTOTAL(109,IncomeSummary[Actual]) -> $4,170.00
B24: Profit & loss summary | C24: Estimated | D24: Actual
B25: Total Income | C25: =IncomeSummary[[#Totals],[Estimated]] -> $4,450.00 | D25: =IncomeSummary[[#Totals],[Actual]] -> $4,170.00
B26: Total Expenses | C26: =ExpensesSummary[[#Totals],[Estimated]] -> $2,090.00 | D26: =ExpensesSummary[[#Totals],[Actual]] -> $1,640.00
B27: Profit or (Loss) | C27: =C25-C26 -> $2,360.00 | D27: =D25-D26 -> $2,530.00
B29: Expenses to profit (loss) ratio | E29: Estimated vs actual costs
